bitfinex/quotes_BTCUSD_20220120
["timestamp","ask_amount","ask_price","bid_price","bid_amount"]
[1642719899332,0.00604251,41077.0,41070.0,1.28079123]
[1642719899537,0.00604251,41077.0,41076.0,1.53554693]
[1642719899732,1.251e-05,41077.0,41076.0,2.91861926]
[1642719899934,1.251e-05,41077.0,41076.0,3.01861926]
[1642719900130,1.251e-05,41077.0,41076.0,2.91861926]
[1642719900334,0.06085904,41078.0,41076.0,2.91861926]
[1642719900335,0.06085904,41078.0,41076.0,3.03079926]
[1642719900531,0.06085904,41078.0,41077.0,0.389119]
[1642719900732,0.12171484,41084.0,41078.0,0.37016653]
[1642719900932,0.06085596,41082.0,41079.0,0.389119]
[1642719901136,0.06085596,41082.0,41079.0,0.489119]
[1642719901333,0.06085596,41082.0,41080.0,0.24893767]
[1642719901534,0.06085596,41082.0,41081.0,0.389119]
[1642719901732,0.06085596,41082.0,41081.0,0.62437596]
[1642719901971,0.06085596,41082.0,41081.0,0.59613218]
[1642719902180,0.12169411,41091.0,41082.0,1.27950026]
[1642719902374,0.12169411,41091.0,41084.0,1.27950026]
[1642719902575,0.12169411,41091.0,41086.0,0.0012571]
[1642719902576,0.12392896,41090.0,41086.0,0.0012571]
[1642719902772,0.12392896,41090.0,41087.0,0.38891]
[1642719902972,0.00120846,41089.0,41087.0,0.38891]
[1642719903172,0.00120846,41089.0,41088.0,1.17153903]
[1642719903374,0.06205292,41089.0,41088.0,1.33891]
[1642719903573,0.06205292,41089.0,41088.0,0.73891]
[1642719903773,0.18598188,41089.0,41088.0,0.74091]
[1642719903973,0.18477342,41089.0,41088.0,0.74091]
[1642719904173,0.23477342,41089.0,41088.0,0.74091]
[1642719904778,0.11084446,41089.0,41088.0,0.74091]
[1642719905075,0.23476932,41089.0,41088.0,0.73891]
[1642719905274,0.11084446,41089.0,41088.0,0.73891]
[1642719905723,0.11084446,41089.0,41088.0,0.74091]
[1642719905724,0.23476932,41089.0,41088.0,0.74091]
[1642719906528,0.23476932,41089.0,41088.0,1.09091]
[1642719906926,0.23476932,41089.0,41088.0,1.08891]
[1642719907525,0.23476932,41089.0,41088.0,1.53891]
[1642719907526,0.11084446,41089.0,41088.0,1.53891]
[1642719907726,0.05,41089.0,41088.0,1.54091]
[1642719908127,0.06195284,41091.0,41088.0,1.54091]
[1642719908128,0.11195284,41091.0,41088.0,1.54091]
[1642719908330,0.11195284,41091.0,41089.0,0.61193074]
[1642719908529,0.11195284,41091.0,41090.0,1.07073492]
[1642719908732,0.11084303,41091.0,41090.0,1.46079401]
[1642719909130,0.05,41091.0,41090.0,1.46079401]
[1642719909576,0.00110979,41092.0,41090.0,2.73947601]
[1642719909776,0.00110979,41092.0,41091.0,1.08891]
[1642719909980,0.12168079,41098.0,41091.0,1.08891]
[1642719910179,0.00120841,41093.0,41091.0,2.36891]
[1642719910377,0.00120841,41093.0,41092.0,1.28843771]
[1642719910577,0.00120841,41093.0,41092.0,1.97734771]
[1642719910978,0.00120841,41093.0,41092.0,1.67734771]
[1642719911181,0.06083827,41096.0,41092.0,1.67734771]
[1642719911380,0.00120839,41095.0,41093.0,0.38891]
[1642719912377,0.06083827,41096.0,41093.0,0.38891]
[1642719912582,0.06204664,41096.0,41093.0,0.38891]
[1642719912982,0.00120837,41096.0,41093.0,0.449744]
[1642719913429,0.00011253,41105.0,41093.0,0.449744]
[1642719913629,0.00110976,41097.0,41093.0,0.451744]
[1642719913830,0.00110976,41097.0,41094.0,1.28]
[1642719914032,0.00011253,41105.0,41096.0,0.95]
[1642719914230,0.06082846,41101.0,41097.0,0.38891]
[1642719915031,0.12165692,41105.0,41099.0,0.36666284]
[1642719915235,0.00011253,41104.0,41097.0,0.1]
[1642719915436,0.06082601,41103.0,41095.0,0.01218]
[1642719915632,0.06082601,41103.0,41099.0,0.002]
[1642719916132,0.05011253,41105.0,41099.0,0.002]
[1642719916332,0.00011253,41105.0,41099.0,0.002]
[1642719916732,0.00011253,41106.0,41100.0,0.38891]
[1642719916974,0.06093558,41107.0,41100.0,0.38891]
[1642719917375,0.06093558,41107.0,41100.0,1.729732]
[1642719917376,0.00011253,41106.0,41100.0,1.729732]
[1642719917781,0.00011253,41107.0,41100.0,1.67291]
[1642719917977,0.06000555,41105.0,41100.0,1.67291]
[1642719918175,0.06000555,41105.0,41101.0,0.21909207]
[1642719918176,0.04500555,41105.0,41101.0,0.21909207]
[1642719918380,0.00011253,41107.0,41102.0,0.00121764]
[1642719918580,0.00120714,41106.0,41103.0,0.388763]
[1642719919076,0.00120714,41106.0,41103.0,0.488763]
[1642719919275,0.00120714,41106.0,41105.0,0.99755885]
[1642719919476,0.00011253,41112.0,41105.0,1.93756622]
[1642719919681,0.00011253,41112.0,41107.0,0.00010288]
[1642719919886,0.6833,41126.0,41107.0,0.00010288]
[1642719919887,0.6833,41126.0,41123.0,0.00125902]
[1642719920087,0.42,41130.0,41124.0,0.0487]
[1642719920478,0.42,41141.0,41127.0,0.35777294]
[1642719920751,0.0001126,41137.0,41129.0,0.00128055]
[1642719920939,0.0001126,41137.0,41131.0,0.2]
[1642719921138,0.42,41141.0,41131.0,0.2]
[1642719921139,0.4201126,41141.0,41131.0,0.2]
[1642719921342,0.0001126,41140.0,41131.0,0.2]
[1642719921539,0.0001126,41140.0,41138.0,0.32691911]
[1642719921741,0.0001126,41141.0,41139.0,0.388763]
[1642719921941,0.0001126,41141.0,41140.0,0.00125126]
[1642719922240,0.4201126,41147.0,41140.0,0.0487]
[1642719922843,0.36620782,41146.0,41140.0,0.0487]
[1642719923039,0.36632042,41146.0,41140.0,0.0487]
[1642719923440,0.388763,41145.0,41140.0,0.0487]
[1642719923841,0.41742462,41146.0,41140.0,0.0507]
[1642719924043,0.0607777,41144.0,41140.0,0.0507]
[1642719924240,0.00128612,41142.0,41140.0,0.0507]
[1642719924475,1.338763,41141.0,41140.0,0.002]
[1642719924679,0.438763,41141.0,41140.0,0.002]
[1642719925078,0.06078407,41139.0,41131.0,0.32634247]
[1642719925275,0.06078407,41139.0,41131.0,0.0487]
[1642719925479,0.0001126,41140.0,41131.0,0.0487]
[1642719925675,0.05,41141.0,41131.0,0.0527]
[1642719925676,0.00112914,41137.0,41131.0,0.0527]
[1642719925874,0.00112914,41137.0,41132.0,0.388763]
[1642719926074,0.00112914,41137.0,41131.0,0.0527]
[1642719926075,0.00112914,41137.0,41133.0,0.0487]
[1642719926277,0.00112914,41137.0,41133.0,0.36955895]
[1642719926675,0.40081817,41141.0,41133.0,0.36955895]
[1642719926676,0.0001126,41138.0,41133.0,0.36955895]
[1642719926877,0.00112914,41137.0,41133.0,0.0487]
[1642719927078,0.00112914,41137.0,41127.0,0.0487]
[1642719927276,0.06191336,41137.0,41127.0,0.0487]
[1642719927477,0.00112914,41137.0,41127.0,0.0487]
[1642719927677,0.00112914,41137.0,41128.0,0.400923]
[1642719927877,0.0001126,41139.0,41128.0,0.388763]
[1642719928080,0.00112918,41134.0,41128.0,0.488763]
[1642719928341,0.00112918,41134.0,41132.0,0.388763]
[1642719928542,0.00112918,41134.0,41133.0,0.388763]
[1642719928741,0.00112918,41134.0,41133.0,0.493043]
[1642719928944,0.00112918,41134.0,41133.0,0.543043]
[1642719929243,0.0001126,41139.0,41137.0,0.00125891]
[1642719929445,0.00483068,41142.0,41137.0,0.00125891]
[1642719929843,0.32774416,41142.0,41137.0,0.00425891]
[1642719930244,0.32291348,41142.0,41137.0,0.00425891]
[1642719930645,0.43368756,41142.0,41137.0,0.00425891]
[1642719930843,0.43368756,41142.0,41137.0,0.003]
[1642719931044,0.43368756,41142.0,41129.0,0.57494985]
[1642719931045,0.38979056,41141.0,41129.0,0.57370171]
[1642719931245,0.249283,41140.0,41129.0,0.57370171]
[1642719931446,0.5362526,41140.0,41129.0,0.57370171]
[1642719931742,0.5362526,41140.0,41129.0,0.57770171]
[1642719931743,0.06078766,41135.0,41129.0,0.57770171]
[1642719931982,0.34451091,41133.0,41129.0,0.57770171]
[1642719932181,0.48614,41132.0,41129.0,0.57770171]
[1642719932581,0.48009305,41132.0,41130.0,0.388513]
[1642719932886,0.47741305,41132.0,41130.0,0.388513]
[1642719933290,0.52741305,41132.0,41130.0,0.488513]
[1642719933481,0.52741305,41132.0,41131.0,1.088513]
[1642719933682,0.47741305,41132.0,41131.0,1.088513]
[1642719933886,0.47741305,41132.0,41131.0,1.188513]
[1642719935188,0.52741305,41132.0,41131.0,1.200673]
[1642719935586,0.52741305,41132.0,41131.0,0.400673]
[1642719935835,0.52741305,41132.0,41131.0,0.505673]
[1642719936028,0.52741305,41132.0,41131.0,0.405673]
[1642719936228,0.52741305,41132.0,41131.0,0.393513]
[1642719936429,0.52741305,41132.0,41131.0,0.319317]
[1642719936930,0.52741305,41132.0,41131.0,0.314317]
[1642719937129,0.52741305,41132.0,41131.0,0.714317]
[1642719937730,0.52741305,41132.0,41131.0,0.320317]
[1642719938230,0.52741305,41132.0,41131.0,0.870317]
[1642719938630,0.52741305,41132.0,41131.0,0.970317]
[1642719939033,0.47741305,41132.0,41131.0,1.032477]
[1642719939233,0.47741305,41132.0,41131.0,1.532477]
[1642719939475,0.47741305,41132.0,41131.0,1.482477]
[1642719939675,0.47741305,41132.0,41131.0,1.483597]
[1642719940277,0.52741305,41132.0,41131.0,1.483597]
[1642719940476,0.52741305,41132.0,41131.0,1.495757]
[1642719940680,0.52741305,41132.0,41131.0,0.995757]
[1642719941080,0.47741305,41132.0,41131.0,1.290757]
[1642719941276,0.52741305,41132.0,41131.0,0.990757]
[1642719941478,0.00120788,41134.0,41133.0,0.2]
[1642719941677,0.12153459,41144.0,41134.0,0.388546]
[1642719941678,0.11768587,41144.0,41134.0,0.388546]
[1642719941877,0.11768587,41144.0,41135.0,0.2]
[1642719942076,0.11768587,41144.0,41136.0,0.638546]
[1642719942275,0.11768587,41144.0,41136.0,1.918546]
[1642719942477,0.75861723,41147.0,41139.0,0.29672479]
[1642719942677,0.48607,41146.0,41139.0,0.35748579]
[1642719943078,0.48607,41146.0,41139.0,0.45748579]
[1642719943342,0.48607,41146.0,41140.0,0.01216]
[1642719943742,0.00120652,41145.0,41141.0,0.060759]
[1642719943942,6.52e-06,41145.0,41143.0,0.0012208]
[1642719944144,0.50007,41146.0,41145.0,1.588546]
[1642719944145,0.24545652,41146.0,41145.0,1.588546]
[1642719944343,0.0002,41165.0,41150.0,0.2]
[1642719944543,0.0002,41165.0,41159.0,0.00123714]
[1642719944943,0.0002,41165.0,41154.0,0.24491536]
[1642719945142,0.0002,41165.0,41155.0,0.388546]
[1642719945541,0.0002,41165.0,41152.0,0.01216]
[1642719945741,0.0002,41165.0,41155.0,0.005]
[1642719945742,0.00147934,41165.0,41155.0,0.005]
[1642719946142,0.06222534,41165.0,41155.0,0.005]
[1642719946349,0.06073737,41163.0,41155.0,0.005]
[1642719946540,0.12149399,41162.0,41155.0,0.005]
[1642719946982,0.12149399,41162.0,41149.0,0.47434643]
[1642719947178,0.12149399,41162.0,41151.0,0.31979181]
[1642719947381,0.060754,41160.0,41152.0,0.388546]
[1642719947578,0.12150711,41157.0,41152.0,0.388546]
[1642719947778,0.00147934,41165.0,41153.0,0.01216]
[1642719947979,0.00147934,41165.0,41154.0,0.388546]
[1642719948279,0.00147934,41165.0,41154.0,0.488546]
[1642719948478,0.05575355,41158.0,41154.0,0.1]
[1642719948680,0.05575355,41158.0,41155.0,0.388546]
[1642719949084,0.0002,41165.0,41159.0,0.388546]
[1642719949284,0.0002,41165.0,41163.0,0.388546]
[1642719949580,0.0002,41165.0,41164.0,0.433346]
[1642719949978,0.0002,41165.0,41164.0,1.75411933]
[1642719950182,0.0002,41165.0,41164.0,3.03411933]
[1642719950379,0.0002,41165.0,41164.0,3.38535079]
[1642719950587,0.00123013,41182.0,41164.0,3.38535079]
[1642719950588,0.00123013,41180.0,41178.0,0.03876232]
[1642719950841,0.48568,41179.0,41178.0,0.03876232]
[1642719951035,0.48068,41179.0,41178.0,0.01805232]
[1642719951239,0.48068,41179.0,41178.0,0.01624709]
[1642719951734,0.48068,41179.0,41178.0,0.01824709]
[1642719951937,0.48068,41179.0,41178.0,0.002]
[1642719952436,1.19490936,41179.0,41178.0,0.002]
[1642719953037,1.19490936,41179.0,41175.0,0.06072555]
[1642719953241,1.19490936,41179.0,41162.0,0.2418977]
[1642719953242,0.388546,41178.0,41162.0,0.2418977]
[1642719953442,0.388546,41178.0,41155.0,0.00109782]
[1642719953443,0.0012641,41175.0,41155.0,0.00109782]
[1642719953636,0.6304437,41177.0,41155.0,0.00109782]
[1642719953637,0.00126946,41169.0,41155.0,0.00109782]
[1642719953840,0.00128964,41159.0,41155.0,0.00109782]
[1642719954040,0.30008365,41157.0,41155.0,0.00109782]
[1642719954240,1.433346,41156.0,41155.0,0.00109782]
[1642719954483,1.914026,41156.0,41155.0,0.00109812]
[1642719955082,1.974794,41156.0,41155.0,0.00109812]
[1642719955480,1.974794,41156.0,41142.0,0.13561601]
[1642719955681,0.00127093,41153.0,41142.0,0.13561601]
[1642719955880,0.52548,41152.0,41142.0,0.13561601]
[1642719956083,0.06077,41150.0,41142.0,0.13561601]
[1642719956282,0.00127093,41153.0,41143.0,0.06076944]
[1642719956283,0.52548,41149.0,41143.0,0.06076944]
[1642719956483,0.48068,41149.0,41143.0,0.34461067]
[1642719956685,0.48068,41149.0,41144.0,0.388546]
[1642719956986,0.48068,41149.0,41144.0,0.00075554]
[1642719957885,0.48368,41149.0,41147.0,0.00124436]
[1642719958082,0.48368,41149.0,41148.0,0.388546]
[1642719958332,0.48368,41149.0,41148.0,0.74028442]
[1642719959133,0.48068,41149.0,41148.0,0.74028442]
[1642719959736,0.49568,41149.0,41148.0,0.74328442]
[1642719960035,0.49568,41149.0,41148.0,1.18682424]
[1642719960236,0.49568,41149.0,41148.0,0.97466424]
[1642719960435,0.49568,41149.0,41148.0,0.491546]
[1642719960839,0.49446434,41149.0,41148.0,0.92308028]
[1642719961037,0.47946434,41149.0,41148.0,0.97008028]
[1642719961443,0.47946434,41149.0,41148.0,2.25137514]
[1642719961444,0.26346434,41149.0,41148.0,2.25137514]
[1642719961639,0.00011287,41153.0,41152.0,0.00120635]
[1642719961840,0.00011287,41156.0,41152.0,1.38975235]
[1642719962084,0.00120725,41164.0,41155.0,1.388546]
[1642719962278,0.00011287,41163.0,41155.0,1.388546]
[1642719962486,0.00120725,41164.0,41156.0,0.02624]
[1642719962679,0.00011287,41163.0,41157.0,0.388546]
[1642719962878,0.00011287,41165.0,41157.0,0.388546]
[1642719963078,0.35446051,41166.0,41157.0,0.388546]
[1642719963079,0.00120741,41164.0,41158.0,0.0607424]
[1642719963277,0.00120741,41164.0,41159.0,0.388546]
[1642719963678,0.00120741,41164.0,41158.0,0.0607424]
[1642719963978,0.041,41164.0,41159.0,0.12148207]
[1642719964183,0.04220745,41164.0,41159.0,0.12148207]
[1642719964780,0.04204224,41164.0,41159.0,0.12148207]
[1642719965180,0.06085887,41165.0,41159.0,0.12148207]
[1642719965381,0.48706745,41164.0,41159.0,0.12148207]
[1642719966633,0.48706745,41164.0,41155.0,0.00109861]
[1642719966634,0.49534495,41163.0,41155.0,0.00109861]
[1642719966836,0.0133657,41158.0,41155.0,8.61e-06]
[1642719967032,0.643505,41157.0,41155.0,8.61e-06]
[1642719967239,0.38984258,41156.0,41155.0,8.61e-06]
[1642719967433,0.92050258,41156.0,41137.0,0.01408]
[1642719967633,0.0012555,41151.0,41137.0,0.01408]
[1642719967833,0.0012555,41151.0,41136.0,0.0011]
[1642719967834,0.06078,41148.0,41136.0,0.0011]
[1642719968034,0.32329901,41141.0,41136.0,0.0011]
[1642719968433,0.0448,41140.0,41136.0,0.0011]
[1642719968633,0.388546,41139.0,41136.0,0.0011]
[1642719968842,0.166394,41138.0,41136.0,0.0011]
[1642719969035,0.112845,41137.0,41136.0,0.0011]
[1642719969233,0.643505,41137.0,41136.0,0.0011]
[1642719969886,0.648505,41137.0,41136.0,0.0011]
[1642719970079,0.10401319,41138.0,41136.0,0.0011]
[1642719970278,0.433326,41137.0,41136.0,0.0011]
[1642719970677,0.919506,41137.0,41136.0,0.0011]
[1642719971878,0.925506,41137.0,41136.0,0.0011]
[1642719973229,0.919506,41137.0,41136.0,0.0011]
[1642719973433,0.919506,41137.0,41122.0,0.1]
[1642719973434,0.0608,41133.0,41122.0,0.1]
[1642719973636,0.0608,41133.0,41117.0,0.0011]
[1642719973637,0.00122734,41124.0,41117.0,0.0011]
[1642719973837,0.00126753,41119.0,41117.0,0.001]
[1642719974035,0.00126753,41119.0,41112.0,0.00745859]
[1642719974036,0.92075838,41118.0,41112.0,0.00745859]
[1642719974231,0.388526,41114.0,41112.0,0.00210859]
[1642719974434,0.03553,41115.0,41100.0,0.0022]
[1642719974435,0.26653355,41102.0,41100.0,0.0022]
[1642719974635,0.26653355,41102.0,41098.0,0.0011]
[1642719974636,0.388526,41101.0,41098.0,0.0011]
[1642719974834,0.388526,41101.0,41092.0,0.001]
[1642719974835,1.0,41099.0,41092.0,0.001]
[1642719975040,0.388526,41097.0,41094.0,0.5]
[1642719975235,1.12177929,41097.0,41094.0,0.5011]
[1642719975436,1.12177929,41097.0,41095.0,0.0011]
[1642719975635,0.388526,41096.0,41095.0,0.0011]
[1642719975835,0.919506,41096.0,41095.0,0.0011]
[1642719977288,0.33816483,41094.0,41087.0,0.33848713]
[1642719977489,0.919506,41096.0,41087.0,0.33848713]
[1642719977490,0.0448,41093.0,41087.0,0.33848713]
[1642719977690,0.0448,41093.0,41088.0,0.388526]
[1642719977889,0.019,41094.0,41088.0,0.388526]
[1642719978088,0.00120767,41091.0,41087.0,0.002]
[1642719978490,0.019,41094.0,41089.0,0.00348972]
[1642719978690,0.019,41094.0,41091.0,0.32930252]
[1642719978992,0.019,41094.0,41093.0,1.69227339]
[1642719979188,0.060832,41110.0,41094.0,0.019]
[1642719979388,0.06210997,41110.0,41095.0,0.388526]
[1642719979588,0.06210997,41110.0,41096.0,0.01217]
[1642719979788,0.06210997,41110.0,41100.0,0.00103929]
[1642719979989,0.06210997,41110.0,41101.0,0.388526]
[1642719980196,0.06210997,41110.0,41102.0,0.2899689]
[1642719980389,0.06210997,41110.0,41103.0,0.390976]
[1642719980588,0.06210997,41110.0,41103.0,0.490976]
[1642719981028,0.06210997,41110.0,41104.0,0.00103911]
[1642719981631,0.00123332,41105.0,41104.0,0.00103911]
[1642719981932,0.00123332,41105.0,41104.0,0.012]
[1642719982335,0.004,41110.0,41104.0,0.41841443]
[1642719982533,0.004,41110.0,41105.0,0.388526]
[1642719982734,0.004,41110.0,41106.0,0.0448]
[1642719982933,0.004,41110.0,41109.0,0.33295545]
[1642719983130,0.00128294,41120.0,41113.0,0.388735]
[1642719983336,0.27078104,41124.0,41115.0,0.36568646]
[1642719983529,0.27078104,41124.0,41116.0,0.0448]
[1642719983730,0.0012693,41127.0,41117.0,0.62769054]
[1642719984033,0.0011,41133.0,41119.0,0.06080216]
[1642719984230,0.0011,41133.0,41122.0,0.37378025]
[1642719984231,0.00233913,41133.0,41122.0,0.37378025]
[1642719984486,0.00233913,41133.0,41131.0,0.25804057]
[1642719984687,0.11021064,41132.0,41131.0,0.25804057]
[1642719984888,0.10930064,41132.0,41131.0,0.25804057]
[1642719985089,0.10709064,41132.0,41131.0,0.64677557]
[1642719985292,0.10462064,41132.0,41131.0,1.57993847]
[1642719985486,0.10215064,41132.0,41131.0,1.40571847]
[1642719985685,0.09968064,41132.0,41131.0,0.82255557]
[1642719985886,0.10160064,41132.0,41131.0,1.07168195]
[1642719986486,0.10160064,41132.0,41131.0,0.65077557]
[1642719987088,0.10030064,41132.0,41131.0,1.25077557]
[1642719987292,0.09435064,41132.0,41131.0,0.94677557]
[1642719987589,0.09435064,41132.0,41131.0,1.32762316]
[1642719987590,0.08545064,41132.0,41131.0,1.32762316]
[1642719987791,0.08246064,41132.0,41131.0,1.09677557]
[1642719987990,0.08338064,41132.0,41131.0,0.82793557]
[1642719988433,0.08338064,41132.0,41131.0,0.614695]
[1642719988739,0.06146949,41130.0,41123.0,0.06079855]
[1642719988934,0.06146949,41130.0,41121.0,0.38400886]
[1642719989136,0.00124823,41127.0,41116.0,0.2428694]
[1642719989336,0.2862484,41118.0,41111.0,0.30506485]
[1642719989534,0.1063528,41117.0,41114.0,0.31039238]
[1642719989934,0.1063528,41117.0,41111.0,0.30506485]
[1642719990340,0.1063528,41117.0,41107.0,0.00125204]
[1642719990540,0.1063528,41117.0,41103.0,3.0542133]
[1642719990541,0.00121157,41113.0,41111.0,0.00104998]
[1642719991544,0.060831,41110.0,41103.0,0.42]
[1642719991741,0.48415787,41112.0,41103.0,0.42]
[1642719992591,0.11231589,41105.0,41103.0,0.67857088]
[1642719992996,0.11231589,41105.0,41103.0,0.414]
[1642719993194,0.11231589,41105.0,41103.0,0.41217607]
[1642719993391,0.11231589,41105.0,41103.0,0.31217607]
[1642719993794,0.6,41103.0,41100.0,0.0001]
[1642719993991,0.00125572,41101.0,41100.0,0.0001]
[1642719994192,0.38993272,41101.0,41100.0,0.0001]
[1642719994593,0.38993272,41101.0,41096.0,0.00420211]
[1642719994594,0.87409059,41101.0,41096.0,0.00420211]
[1642719994795,0.3898773,41097.0,41084.0,0.01215]
[1642719994991,0.60792174,41096.0,41081.0,0.0011]
[1642719995192,0.388677,41095.0,41081.0,0.0011]
[1642719995491,0.24303882,41093.0,41084.0,0.36686111]
[1642719995743,1.03936387,41092.0,41084.0,0.36686111]
[1642719995946,1.10022987,41092.0,41084.0,0.36686111]
[1642719996443,1.09793,41092.0,41084.0,0.36686111]
[1642719996640,1.09793,41092.0,41085.0,0.2999959]
[1642719997043,0.91763487,41092.0,41085.0,0.2999959]
[1642719997242,0.52895787,41092.0,41085.0,0.2999959]
[1642719997641,0.52895787,41092.0,41085.0,0.7199959]
[1642719997944,0.55695787,41092.0,41091.0,0.32299786]
[1642719998149,0.51215787,41092.0,41091.0,0.32299786]
[1642719998352,0.51215787,41092.0,41091.0,0.85761629]
[1642719998544,0.51215787,41092.0,41091.0,2.24629329]
[1642719998745,0.51215787,41092.0,41091.0,2.25721038]
[1642719999242,0.48415787,41092.0,41091.0,2.25721038]
[1642719999990,0.48415787,41092.0,41091.0,2.26921038]
[1642720000191,0.48415787,41092.0,41091.0,2.31921038]
[1642720000393,0.0012083,41098.0,41092.0,1.0]
[1642720000595,0.0012083,41098.0,41096.0,0.388624]
[1642720000795,0.0012083,41098.0,41097.0,1.400764]
[1642720001194,0.00122237,41110.0,41097.0,1.500764]
[1642720001394,0.00120835,41100.0,41098.0,0.69892282]
[1642720001593,8.35e-06,41100.0,41099.0,1.019728]
[1642720001794,8.35e-06,41100.0,41099.0,1.17130393]
[1642720001995,8.35e-06,41100.0,41099.0,1.51610393]
[1642720002496,0.00129143,41117.0,41099.0,1.37825393]
[1642720002795,0.00129143,41117.0,41110.0,0.24813094]
[1642720003238,0.00129143,41117.0,41111.0,0.388677]
[1642720003435,0.11960218,41118.0,41111.0,0.388677]
[1642720004036,0.27025486,41116.0,41111.0,0.388677]
[1642720004233,0.27025486,41116.0,41110.0,0.24813094]
[1642720004436,0.0898869,41111.0,41110.0,0.24813094]
[1642720004636,0.0898869,41111.0,41110.0,0.63680794]
[1642720004837,0.017,41118.0,41110.0,0.63680794]
[1642720005036,0.017,41118.0,41111.0,0.019513]
[1642720005236,0.34796484,41120.0,41110.0,0.24813094]
[1642720005836,0.092396,41115.0,41110.0,0.24813094]
[1642720006037,0.0012051,41123.0,41113.0,0.06080972]
[1642720006038,0.014,41120.0,41113.0,0.06080972]
[1642720006241,0.014,41120.0,41114.0,0.019499]
[1642720006242,0.00120792,41117.0,41114.0,0.019499]
[1642720007078,0.09122105,41116.0,41114.0,0.019499]
[1642720007283,0.09122105,41116.0,41110.0,0.1]
[1642720007486,0.09122105,41116.0,41101.0,0.2]
[1642720007487,0.388677,41115.0,41100.0,0.01225]
[1642720007684,0.00128887,41111.0,41100.0,0.01225]
[1642720007880,1.892977,41110.0,41105.0,0.007]
[1642720008081,1.892977,41110.0,41096.0,0.00102203]
[1642720008082,0.00121379,41106.0,41096.0,0.00227203]
[1642720008283,0.31027347,41100.0,41096.0,0.00227203]
[1642720008484,0.00122949,41098.0,41093.0,0.01216]
[1642720008681,0.11185605,41097.0,41096.0,0.000711]
[1642720008885,1.15178593,41097.0,41096.0,0.000711]
[1642720009281,1.75178593,41097.0,41096.0,0.000711]
[1642720009481,2.28308593,41097.0,41096.0,0.000711]
[1642720009883,2.06535373,41097.0,41089.0,0.0022]
[1642720010086,0.2662999,41090.0,41089.0,0.0022]
[1642720010284,1.1414769,41090.0,41089.0,0.0022]
[1642720010942,1.1414769,41090.0,41089.0,0.0011]
[1642720011137,1.1414769,41090.0,41082.0,0.01216]
[1642720011138,2.18756695,41090.0,41082.0,0.01216]
[1642720011340,0.0012934,41082.0,41078.0,0.001]
[1642720011542,1.9373494,41082.0,41078.0,0.001]
[1642720011738,0.27577201,41079.0,41078.0,0.001]
[1642720011939,1.15094901,41079.0,41078.0,0.001]
[1642720012142,0.875177,41079.0,41078.0,0.001]
[1642720012546,0.4865,41079.0,41078.0,0.001]
[1642720013342,0.4865,41079.0,41078.0,0.36931613]
[1642720013943,0.4905,41079.0,41078.0,0.36931613]
[1642720015201,0.4865,41079.0,41078.0,0.36931613]
[1642720015600,0.02942297,41082.0,41079.0,0.688677]
[1642720016001,0.02942297,41082.0,41080.0,0.28049166]
[1642720016204,0.02942297,41082.0,41081.0,0.019875]
[1642720016406,0.00127082,41087.0,41081.0,0.019875]
[1642720016606,0.31056614,41097.0,41086.0,0.30274106]
[1642720016807,0.00128812,41093.0,41080.0,0.38049166]
[1642720017006,0.00128812,41093.0,41087.0,0.33080596]
[1642720017602,0.06214512,41093.0,41087.0,0.33080596]
[1642720017802,0.06214512,41093.0,41088.0,0.388677]
[1642720018003,0.06414512,41093.0,41090.0,0.29876671]
[1642720018235,0.062857,41093.0,41091.0,0.019766]
[1642720018637,0.062857,41093.0,41088.0,0.00101372]
[1642720018638,0.06415477,41093.0,41088.0,0.00101372]
[1642720018837,0.00123508,41089.0,41088.0,0.00101372]
[1642720019237,0.00123508,41089.0,41081.0,0.12171047]
[1642720019437,0.00123508,41089.0,41086.0,0.00101378]
[1642720020032,0.00523508,41089.0,41086.0,0.00101378]
[1642720020234,0.060861,41088.0,41081.0,0.12171047]
[1642720020534,0.060861,41088.0,41085.0,0.00101382]
[1642720020734,0.41487034,41089.0,41085.0,0.00101382]
[1642720021336,0.48671,41088.0,41085.0,0.00101382]
[1642720021534,0.54757,41088.0,41081.0,0.12171047]
[1642720021734,0.54757,41088.0,41080.0,0.37361205]
[1642720021992,0.55057,41088.0,41081.0,0.240114]
[1642720022487,0.55057,41088.0,41080.0,0.27014507]
[1642720022687,0.55057,41088.0,41078.0,0.12172166]
[1642720022688,0.060866,41085.0,41078.0,0.12172166]
[1642720022891,0.87664922,41084.0,41074.0,0.001]
[1642720023095,0.97664922,41084.0,41074.0,0.001]
[1642720023290,0.00127557,41077.0,41074.0,0.001]
[1642720023491,0.00127557,41077.0,41067.0,0.001]
[1642720023492,0.875387,41076.0,41067.0,0.001]
[1642720023691,0.48671,41076.0,41068.0,0.32956959]
[1642720023889,0.48671,41076.0,41068.0,0.32964159]
[1642720024189,0.548591,41076.0,41070.0,0.00107599]
[1642720024391,0.48771,41076.0,41070.0,0.00107599]
[1642720024791,0.48771,41076.0,41071.0,0.06087232]
[1642720024991,0.48771,41076.0,41072.0,0.388677]
[1642720025191,0.48671,41076.0,41072.0,0.388677]
[1642720025592,0.48671,41076.0,41071.0,0.06194829]
[1642720026051,0.50671,41076.0,41071.0,0.06194829]
[1642720026550,0.50671,41076.0,41071.0,0.06196861]
[1642720027255,0.50671,41076.0,41072.0,0.388677]
[1642720027452,0.48671,41076.0,41072.0,0.388677]
[1642720027652,0.48671,41076.0,41072.0,0.77632814]
[1642720027851,0.48671,41076.0,41073.0,0.2250142]
[1642720028052,0.48671,41076.0,41074.0,0.08082367]
[1642720028053,0.49371,41076.0,41074.0,0.08082367]
[1642720028753,0.49371,41076.0,41075.0,0.98737424]
[1642720028954,0.49371,41076.0,41075.0,1.37602124]
[1642720029154,0.49371,41076.0,41075.0,1.47602124]
[1642720029354,0.48671,41076.0,41075.0,1.47602124]
[1642720029582,0.48671,41076.0,41075.0,1.37602124]
[1642720030086,0.50671,41076.0,41075.0,1.37602124]
[1642720030486,0.50671,41076.0,41075.0,0.72522774]
[1642720030886,0.50671,41076.0,41075.0,0.95047702]
[1642720031082,0.50671,41076.0,41075.0,1.30047702]
[1642720031285,0.48671,41076.0,41075.0,1.30047702]
[1642720031685,0.48671,41076.0,41075.0,0.95047702]
[1642720032086,0.48671,41076.0,41075.0,1.45047702]
[1642720032087,0.49071,41076.0,41075.0,1.45047702]
[1642720032289,0.49071,41076.0,41075.0,0.95047702]